[Event "Early-Titled-Tuesday-Blitz-May-28-2024"]
[Site "Chess.com"]
[Date "2024.05.28"]
[Round "3"]
[White "KatakuriDono"]
[Black "Vesper2018"]
[Result "0-1"]
[WhiteElo "2276"]
[BlackElo "2563"]
[TimeControl "180+1"]
[EndTime "8:30:04 PDT"]
[Termination "Vesper2018 won by resignation"]

1. d4 {[%clk 0:03:00.9]} 1... Nf6 {[%clk 0:02:59.9]} 2. Nf3 {[%clk 0:03:01]}
2... g6 {[%clk 0:03:00.5]} 3. Nbd2 {[%clk 0:03:00.3]} 3... d5 {[%clk 0:03:00.4]}
4. e3 {[%clk 0:03:00.4]} 4... Bg7 {[%clk 0:03:00.5]} 5. b4 {[%clk 0:03:00.4]}
5... a5 {[%clk 0:03:00.2]} 6. b5 {[%clk 0:03:00.4]} 6... a4 {[%clk 0:02:55.1]}
7. c4 {[%clk 0:02:58.2]} 7... c6 {[%clk 0:02:53.1]} 8. Be2 {[%clk 0:02:55.2]}
8... dxc4 {[%clk 0:02:41.6]} 9. bxc6 {[%clk 0:02:53]} 9... c3 {[%clk 0:02:41.3]}
10. Nb1 {[%clk 0:02:42.3]} 10... Qa5 {[%clk 0:02:38.4]} 11. Qc2 {[%clk
0:02:33.4]} 11... Nxc6 {[%clk 0:02:36.1]} 12. Qxc3 {[%clk 0:02:29.3]} 12... Nb4
{[%clk 0:02:23]} 13. O-O {[%clk 0:02:26.9]} 13... Nfd5 {[%clk 0:02:22.1]} 14.
Qd2 {[%clk 0:02:20.4]} 14... Bf5 {[%clk 0:02:19.8]} 15. Na3 {[%clk 0:02:05.7]}
15... O-O {[%clk 0:02:17.5]} 16. Nc4 {[%clk 0:02:02.2]} 16... Qc7 {[%clk
0:02:14.3]} 17. a3 {[%clk 0:01:56.2]} 17... Nc6 {[%clk 0:02:11.6]} 18. Bb2
{[%clk 0:01:51]} 18... Rfd8 {[%clk 0:02:05.4]} 19. Rac1 {[%clk 0:01:48.6]} 19...
Qd7 {[%clk 0:01:42.4]} 20. Bd3 {[%clk 0:01:31.4]} 20... Bxd3 {[%clk 0:01:39.8]}
21. Qxd3 {[%clk 0:01:31.5]} 21... Qe6 {[%clk 0:01:32.7]} 22. Qb1 {[%clk
0:01:19.1]} 22... f5 {[%clk 0:01:29]} 23. Rfe1 {[%clk 0:01:09.2]} 23... b5
{[%clk 0:01:09.8]} 24. Nce5 {[%clk 0:01:02.8]} 24... Nxe5 {[%clk 0:01:09.2]} 25.
Nxe5 {[%clk 0:01:03.1]} 25... Bxe5 {[%clk 0:01:05.8]} 26. dxe5 {[%clk
0:01:03.2]} 26... Nb6 {[%clk 0:01:06.1]} 27. Bd4 {[%clk 0:01:01.2]} 27... Rd5
{[%clk 0:00:51.2]} 28. Qb4 {[%clk 0:00:57.8]} 28... Nc4 {[%clk 0:00:48.9]} 29.
h3 {[%clk 0:00:52]} 29... Rad8 {[%clk 0:00:44.1]} 30. Rb1 {[%clk 0:00:46.6]}
30... f4 {[%clk 0:00:42.8]} 31. Qc3 {[%clk 0:00:32.1]} 31... f3 {[%clk
0:00:32.6]} 32. Rec1 {[%clk 0:00:31.6]} 32... fxg2 {[%clk 0:00:27.9]} 33. Kxg2
{[%clk 0:00:32.5]} 33... Nxe5 {[%clk 0:00:28.1]} 34. Bxe5 {[%clk 0:00:27.8]}
34... Rxe5 {[%clk 0:00:28.1]} 35. Rb4 {[%clk 0:00:26.1]} 35... Rf8 {[%clk
0:00:20.8]} 36. Rf4 {[%clk 0:00:22.2]} 36... Rxf4 {[%clk 0:00:17.5]} 37. exf4
{[%clk 0:00:23.1]} 37... Re2 {[%clk 0:00:17.7]} 38. Qd4 {[%clk 0:00:17.3]} 38...
Qe4+ {[%clk 0:00:15.4]} 39. Qxe4 {[%clk 0:00:17.2]} 39... Rxe4 {[%clk
0:00:16.1]} 40. Rb1 {[%clk 0:00:16.3]} 40... Rxf4 {[%clk 0:00:11.7]} 41. Rxb5
{[%clk 0:00:16.5]} 41... Re4 {[%clk 0:00:11.8]} 42. Kf3 {[%clk 0:00:14.4]} 42...
Rc4 {[%clk 0:00:11.7]} 43. Kg2 {[%clk 0:00:12.7]} 43... Rc3 {[%clk 0:00:12]} 44.
Rb7 {[%clk 0:00:04.3]} 44... Kf7 {[%clk 0:00:12]} 45. Ra7 {[%clk 0:00:04.7]}
45... Rxa3 {[%clk 0:00:12.6]} 46. Kh2 {[%clk 0:00:04.6]} 46... Ra1 {[%clk
0:00:13]} 47. Kg2 {[%clk 0:00:05.1]} 47... a3 {[%clk 0:00:13.2]} 48. Kh2 {[%clk
0:00:05.8]} 48... Kf6 {[%clk 0:00:09.2]} 49. Ra5 {[%clk 0:00:05.8]} 49... e5
{[%clk 0:00:08.6]} 50. Kg2 {[%clk 0:00:04.4]} 50... Kf5 {[%clk 0:00:08.8]} 51.
Kf3 {[%clk 0:00:04.2]} 51... Rh1 {[%clk 0:00:07.4]} 52. Kg2 {[%clk 0:00:03.3]}
52... Ra1 {[%clk 0:00:07.4]} 53. Kf3 {[%clk 0:00:01.8]} 53... g5 {[%clk
0:00:06.6]} 54. Kg2 {[%clk 0:00:01]} 54... h5 {[%clk 0:00:06.7]} 55. Kf3 {[%clk
0:00:01.4]} 55... g4+ {[%clk 0:00:06.9]} 56. hxg4+ {[%clk 0:00:01.7]} 56...
hxg4+ {[%clk 0:00:07.4]} 57. Kg2 {[%clk 0:00:02.6]} 57... a2 {[%clk 0:00:07.7]}
58. Ra4 {[%clk 0:00:03]} 58... Ke6 {[%clk 0:00:04.5]} 59. Ra6+ {[%clk
0:00:03.4]} 59... Kd5 {[%clk 0:00:05.1]} 60. Ra5+ {[%clk 0:00:04.2]} 60... Kc4
{[%clk 0:00:05.4]} 61. Ra4+ {[%clk 0:00:04.9]} 61... Kb3 {[%clk 0:00:05.7]} 62.
Ra8 {[%clk 0:00:05.6]} 62... Rc1 {[%clk 0:00:05.1]} 63. Rb8+ {[%clk 0:00:06]}
63... Kc3 {[%clk 0:00:05.4]} 64. Rc8+ {[%clk 0:00:06.2]} 64... Kd2 {[%clk
0:00:05.8]} 65. Rd8+ {[%clk 0:00:06.8]} 65... Ke2 {[%clk 0:00:06]} 66. Re8
{[%clk 0:00:07.5]} 66... a1=Q {[%clk 0:00:05.8]} 67. Rxe5+ {[%clk 0:00:08.4]}
67... Qxe5 {[%clk 0:00:06.1]} 0-1

[Event "Early-Titled-Tuesday-Blitz-May-28-2024"]
[Site "Chess.com"]
[Date "2024.05.28"]
[Round "3"]
[White "djokovic74"]
[Black "MITerryble"]
[Result "0-1"]
[WhiteElo "2760"]
[BlackElo "3024"]
[TimeControl "180+1"]
[EndTime "8:30:11 PDT"]
[Termination "MITerryble won by checkmate"]

1. c4 {[%clk 0:03:00.9]} 1... g6 {[%clk 0:02:44.5]} 2. Nf3 {[%clk 0:02:59.9]}
2... Bg7 {[%clk 0:02:44.3]} 3. g3 {[%clk 0:03:00]} 3... d6 {[%clk 0:02:44.3]} 4.
Bg2 {[%clk 0:02:59.9]} 4... e5 {[%clk 0:02:44.3]} 5. d3 {[%clk 0:02:59.8]} 5...
Nc6 {[%clk 0:02:44.5]} 6. O-O {[%clk 0:03:00.3]} 6... Nge7 {[%clk 0:02:45.1]} 7.
Nc3 {[%clk 0:03:00.3]} 7... O-O {[%clk 0:02:45.7]} 8. Rb1 {[%clk 0:02:57.8]}
8... f5 {[%clk 0:02:46.1]} 9. Bd2 {[%clk 0:02:44.9]} 9... h6 {[%clk 0:02:42.8]}
10. b4 {[%clk 0:02:41.7]} 10... g5 {[%clk 0:02:42]} 11. b5 {[%clk 0:02:39.8]}
11... Nb8 {[%clk 0:02:42.3]} 12. Qb3 {[%clk 0:02:31.6]} 12... Kh8 {[%clk
0:02:37.2]} 13. c5 {[%clk 0:02:07.2]} 13... d5 {[%clk 0:02:31.3]} 14. e3 {[%clk
0:02:04.6]} 14... c6 {[%clk 0:02:23.7]} 15. d4 {[%clk 0:01:23.2]} 15... e4
{[%clk 0:02:20]} 16. Ne5 {[%clk 0:01:13.6]} 16... Nd7 {[%clk 0:02:17.5]} 17.
bxc6 {[%clk 0:00:58.2]} 17... bxc6 {[%clk 0:02:18.4]} 18. Nxc6 {[%clk
0:00:47.3]} 18... Nxc6 {[%clk 0:02:19.3]} 19. Qxd5 {[%clk 0:00:47.1]} 19... Ndb8
{[%clk 0:02:13.6]} 20. g4 {[%clk 0:00:30.2]} 20... Qxd5 {[%clk 0:01:49]} 21.
Nxd5 {[%clk 0:00:30]} 21... Na6 {[%clk 0:01:49.9]} 22. Rfc1 {[%clk 0:00:20.6]}
22... fxg4 {[%clk 0:01:47.5]} 23. Bxe4 {[%clk 0:00:16.1]} 23... Bf5 {[%clk
0:01:47.9]} 24. Nc3 {[%clk 0:00:07]} 24... Rac8 {[%clk 0:01:41.9]} 25. Rb7
{[%clk 0:00:03.8]} 25... Nxd4 {[%clk 0:01:33.2]} 26. exd4 {[%clk 0:00:03.8]}
26... Bxd4 {[%clk 0:01:34.1]} 27. Bxf5 {[%clk 0:00:03.2]} 27... Rxf5 {[%clk
0:01:35]} 28. Ne4 {[%clk 0:00:03.7]} 28... Nxc5 {[%clk 0:01:33]} 29. Be3 {[%clk
0:00:02.8]} 29... Bxe3 {[%clk 0:01:24.5]} 30. fxe3 {[%clk 0:00:03.4]} 30... Nxb7
{[%clk 0:01:23.2]} 31. Rxc8+ {[%clk 0:00:03.3]} 31... Kg7 {[%clk 0:01:24.1]} 32.
Rc7+ {[%clk 0:00:02]} 32... Rf7 {[%clk 0:01:24.6]} 33. Rc6 {[%clk 0:00:02.5]}
33... Na5 {[%clk 0:01:21.2]} 34. Rc5 {[%clk 0:00:03]} 34... Nb7 {[%clk
0:01:20.6]} 35. Rc6 {[%clk 0:00:03.6]} 35... Nd8 {[%clk 0:01:03.2]} 36. Ra6
{[%clk 0:00:03.8]} 36... Rc7 {[%clk 0:00:49.1]} 37. Ng3 {[%clk 0:00:03.6]} 37...
Kh7 {[%clk 0:00:43.7]} 38. Nf5 {[%clk 0:00:03.6]} 38... Nf7 {[%clk 0:00:44.3]}
39. Kg2 {[%clk 0:00:02.8]} 39... h5 {[%clk 0:00:44.2]} 40. e4 {[%clk 0:00:02.6]}
40... h4 {[%clk 0:00:44.1]} 41. Kf2 {[%clk 0:00:02.3]} 41... Ne5 {[%clk
0:00:42.3]} 42. Re6 {[%clk 0:00:02.1]} 42... Rc2+ {[%clk 0:00:36.8]} 43. Ke3
{[%clk 0:00:02.1]} 43... Ng6 {[%clk 0:00:37.7]} 44. Ra6 {[%clk 0:00:02]} 44...
Nf4 {[%clk 0:00:29.7]} 45. Rxa7+ {[%clk 0:00:01.9]} 45... Kg6 {[%clk 0:00:30.4]}
46. Ra6+ {[%clk 0:00:02.2]} 46... Kf7 {[%clk 0:00:31]} 47. Ra7+ {[%clk
0:00:02.5]} 47... Ke8 {[%clk 0:00:26.6]} 48. Kd4 {[%clk 0:00:03]} 48... Rxh2
{[%clk 0:00:24]} 49. Ke5 {[%clk 0:00:03.5]} 49... Rd2 {[%clk 0:00:24]} 50. Kf6
{[%clk 0:00:02.7]} 50... g3 {[%clk 0:00:19.1]} 51. e5 {[%clk 0:00:03]} 51...
Nd5+ {[%clk 0:00:13.6]} 52. Kg6 {[%clk 0:00:02.9]} 52... Nf4+ {[%clk 0:00:08.8]}
53. Kf6 {[%clk 0:00:03]} 53... g2 {[%clk 0:00:06.3]} 54. e6 {[%clk 0:00:03]}
54... Nxe6 {[%clk 0:00:06.9]} 55. Kxe6 {[%clk 0:00:01.8]} 55... Re2+ {[%clk
0:00:07.5]} 56. Kf6 {[%clk 0:00:02.4]} 56... g1=Q {[%clk 0:00:07.7]} 57. Nd6+
{[%clk 0:00:02]} 57... Kd8 {[%clk 0:00:07.7]} 58. Nf7+ {[%clk 0:00:02.2]} 58...
Kc8 {[%clk 0:00:08.1]} 59. Nd6+ {[%clk 0:00:02.6]} 59... Kb8 {[%clk 0:00:08.7]}
60. Rb7+ {[%clk 0:00:03.2]} 60... Ka8 {[%clk 0:00:09.3]} 61. Rd7 {[%clk
0:00:03]} 61... Qd4+ {[%clk 0:00:08.4]} 62. Kf7 {[%clk 0:00:03.1]} 62... Qd5+
{[%clk 0:00:08.4]} 63. Kf6 {[%clk 0:00:03.6]} 63... Qe6+ {[%clk 0:00:08.3]} 64.
Kxg5 {[%clk 0:00:03.3]} 64... Qxd7 {[%clk 0:00:09.2]} 65. Nf5 {[%clk 0:00:02.6]}
65... Re5 {[%clk 0:00:09.3]} 66. Kh6 {[%clk 0:00:02.4]} 66... Qxf5 {[%clk
0:00:09.6]} 67. a4 {[%clk 0:00:03.1]} 67... Qg5+ {[%clk 0:00:10]} 68. Kh7 {[%clk
0:00:03.5]} 68... Re7+ {[%clk 0:00:10.9]} 69. Kh8 {[%clk 0:00:04.4]} 69... Qg7#
{[%clk 0:00:11.8]} 0-1

[Event "Early-Titled-Tuesday-Blitz-May-28-2024"]
[Site "Chess.com"]
[Date "2024.05.28"]
[Round "3"]
[White "EvgenyBurmakin"]
[Black "Zq1"]
[Result "1/2-1/2"]
[WhiteElo "2349"]
[BlackElo "2544"]
[TimeControl "180+1"]
[EndTime "8:30:13 PDT"]
[Termination "Game drawn - insufficient material"]

1. e4 {[%clk 0:03:00.9]} 1... c5 {[%clk 0:02:52.2]} 2. Nf3 {[%clk 0:02:59.5]}
2... d6 {[%clk 0:02:52.5]} 3. d4 {[%clk 0:02:59.5]} 3... cxd4 {[%clk 0:02:52.8]}
4. Nxd4 {[%clk 0:03:00.3]} 4... Nf6 {[%clk 0:02:52.4]} 5. Nc3 {[%clk 0:02:59.6]}
5... Nc6 {[%clk 0:02:52.9]} 6. Be2 {[%clk 0:02:42.4]} 6... g6 {[%clk 0:02:52]}
7. Be3 {[%clk 0:02:36.3]} 7... Bg7 {[%clk 0:02:52]} 8. f3 {[%clk 0:02:29.3]}
8... O-O {[%clk 0:02:45.2]} 9. Qd2 {[%clk 0:02:29.4]} 9... h5 {[%clk 0:02:39.7]}
10. O-O-O {[%clk 0:02:28.7]} 10... Nxd4 {[%clk 0:02:37.6]} 11. Bxd4 {[%clk
0:02:28.7]} 11... Be6 {[%clk 0:02:37.7]} 12. Kb1 {[%clk 0:02:28.5]} 12... a6
{[%clk 0:02:36.7]} 13. h3 {[%clk 0:02:20.7]} 13... b5 {[%clk 0:02:36.7]} 14. g4
{[%clk 0:02:16.7]} 14... b4 {[%clk 0:02:36.7]} 15. Nd5 {[%clk 0:02:15.2]} 15...
Bxd5 {[%clk 0:02:27.9]} 16. exd5 {[%clk 0:02:14.4]} 16... Qa5 {[%clk 0:02:27.9]}
17. Bc4 {[%clk 0:02:06.7]} 17... Rac8 {[%clk 0:02:20]} 18. Bb3 {[%clk
0:02:06.9]} 18... Qb5 {[%clk 0:02:20.1]} 19. Qd3 {[%clk 0:01:30.4]} 19... Qxd3
{[%clk 0:02:15.9]} 20. Rxd3 {[%clk 0:01:31.3]} 20... hxg4 {[%clk 0:02:04.9]} 21.
hxg4 {[%clk 0:01:30.8]} 21... Nd7 {[%clk 0:02:04.4]} 22. Bxg7 {[%clk 0:01:16]}
22... Kxg7 {[%clk 0:02:04.5]} 23. Re1 {[%clk 0:01:11.7]} 23... Rfe8 {[%clk
0:02:03.1]} 24. Rde3 {[%clk 0:01:11]} 24... Kf8 {[%clk 0:02:02]} 25. f4 {[%clk
0:01:09.4]} 25... Nc5 {[%clk 0:01:59]} 26. f5 {[%clk 0:01:04.2]} 26... g5 {[%clk
0:01:55.1]} 27. Bc4 {[%clk 0:00:50.2]} 27... Rb8 {[%clk 0:01:33.9]} 28. Rh1
{[%clk 0:00:23.6]} 28... Kg7 {[%clk 0:01:31.8]} 29. a3 {[%clk 0:00:19.1]} 29...
a5 {[%clk 0:01:20.5]} 30. axb4 {[%clk 0:00:19]} 30... axb4 {[%clk 0:01:20.4]}
31. Kc1 {[%clk 0:00:16.1]} 31... Nd7 {[%clk 0:01:14.5]} 32. Bb3 {[%clk
0:00:13.2]} 32... Ne5 {[%clk 0:01:12.6]} 33. Re4 {[%clk 0:00:05.6]} 33... Rec8
{[%clk 0:00:57.2]} 34. Kd2 {[%clk 0:00:04.1]} 34... Rh8 {[%clk 0:00:42]} 35.
Rxh8 {[%clk 0:00:03.1]} 35... Kxh8 {[%clk 0:00:42.2]} 36. Ba4 {[%clk 0:00:02.3]}
36... Kg7 {[%clk 0:00:40.4]} 37. Bc6 {[%clk 0:00:02]} 37... Kf6 {[%clk
0:00:38.8]} 38. c3 {[%clk 0:00:01.8]} 38... bxc3+ {[%clk 0:00:37.4]} 39. Kxc3
{[%clk 0:00:02.7]} 39... Rc8 {[%clk 0:00:32.1]} 40. b4 {[%clk 0:00:01.2]} 40...
Nxc6 {[%clk 0:00:31.3]} 41. dxc6 {[%clk 0:00:02.1]} 41... Rxc6+ {[%clk
0:00:30.8]} 42. Kd4 {[%clk 0:00:01.6]} 42... e6 {[%clk 0:00:28.8]} 43. fxe6
{[%clk 0:00:01.5]} 43... fxe6 {[%clk 0:00:28.2]} 44. Re2 {[%clk 0:00:02.1]}
44... Rb6 {[%clk 0:00:22.2]} 45. Rf2+ {[%clk 0:00:02.3]} 45... Ke7 {[%clk
0:00:21.5]} 46. Rb2 {[%clk 0:00:03.2]} 46... Kd7 {[%clk 0:00:20.8]} 47. Kc4
{[%clk 0:00:03.1]} 47... d5+ {[%clk 0:00:13.6]} 48. Kc5 {[%clk 0:00:03.1]} 48...
Rc6+ {[%clk 0:00:13.7]} 49. Kb5 {[%clk 0:00:03.4]} 49... Kd6 {[%clk 0:00:13.4]}
50. Ka5 {[%clk 0:00:03.5]} 50... Rc8 {[%clk 0:00:10.9]} 51. b5 {[%clk
0:00:03.9]} 51... d4 {[%clk 0:00:09.6]} 52. b6 {[%clk 0:00:03.7]} 52... e5
{[%clk 0:00:08.3]} 53. b7 {[%clk 0:00:04.1]} 53... Rb8 {[%clk 0:00:08.1]} 54.
Kb6 {[%clk 0:00:04.6]} 54... d3 {[%clk 0:00:07.2]} 55. Rb3 {[%clk 0:00:03.5]}
55... e4 {[%clk 0:00:05.9]} 56. Rb4 {[%clk 0:00:03.3]} 56... Kd5 {[%clk
0:00:05.6]} 57. Rb5+ {[%clk 0:00:03.7]} 57... Kd4 {[%clk 0:00:05.8]} 58. Rxg5
{[%clk 0:00:04.1]} 58... d2 {[%clk 0:00:05.6]} 59. Rg7 {[%clk 0:00:04.2]} 59...
Rd8 {[%clk 0:00:04.7]} 60. Kc7 {[%clk 0:00:03.6]} 60... Rf8 {[%clk 0:00:03.5]}
61. Rd7+ {[%clk 0:00:03.2]} 61... Ke3 {[%clk 0:00:03.6]} 62. Rd8 {[%clk
0:00:03.9]} 62... Rf7+ {[%clk 0:00:03.1]} 63. Kc8 {[%clk 0:00:03.3]} 63... Rxb7
{[%clk 0:00:02.9]} 64. Kxb7 {[%clk 0:00:04.2]} 64... Ke2 {[%clk 0:00:03]} 65.
Kc6 {[%clk 0:00:03.9]} 65... d1=Q {[%clk 0:00:02.3]} 66. Rxd1 {[%clk 0:00:04.8]}
66... Kxd1 {[%clk 0:00:02.6]} 67. g5 {[%clk 0:00:05.7]} 67... e3 {[%clk
0:00:03.1]} 68. g6 {[%clk 0:00:06.5]} 68... e2 {[%clk 0:00:03.7]} 69. g7 {[%clk
0:00:07.4]} 69... e1=Q {[%clk 0:00:04]} 70. g8=Q {[%clk 0:00:08.3]} 70... Qe4+
{[%clk 0:00:04.4]} 71. Qd5+ {[%clk 0:00:08.4]} 71... Qxd5+ {[%clk 0:00:04.5]}
72. Kxd5 {[%clk 0:00:09.3]} 1/2-1/2

[Event "Early-Titled-Tuesday-Blitz-May-28-2024"]
[Site "Chess.com"]
[Date "2024.05.28"]
[Round "3"]
[White "DenLaz"]
[Black "MarkusRagger"]
[Result "1/2-1/2"]
[WhiteElo "3104"]
[BlackElo "2798"]
[TimeControl "180+1"]
[EndTime "8:30:14 PDT"]
[Termination "Game drawn by agreement"]

1. d4 {[%clk 0:03:00.9]} 1... Nf6 {[%clk 0:03:00.2]} 2. c4 {[%clk 0:03:01.4]}
2... g6 {[%clk 0:03:00.9]} 3. g3 {[%clk 0:03:01.4]} 3... Bg7 {[%clk 0:02:59.8]}
4. Bg2 {[%clk 0:03:01.9]} 4... c6 {[%clk 0:03:00.5]} 5. e4 {[%clk 0:03:01.1]}
5... O-O {[%clk 0:02:59.6]} 6. Nc3 {[%clk 0:03:01]} 6... d6 {[%clk 0:02:59.9]}
7. Nge2 {[%clk 0:02:59.8]} 7... Nbd7 {[%clk 0:02:59.3]} 8. O-O {[%clk
0:03:00.1]} 8... e5 {[%clk 0:02:59]} 9. h3 {[%clk 0:03:00.7]} 9... Re8 {[%clk
0:02:58.8]} 10. Be3 {[%clk 0:03:00.6]} 10... a6 {[%clk 0:02:59.1]} 11. a4 {[%clk
0:02:58.2]} 11... a5 {[%clk 0:02:59]} 12. Qc2 {[%clk 0:02:58]} 12... exd4 {[%clk
0:02:56.1]} 13. Nxd4 {[%clk 0:02:58.9]} 13... Nc5 {[%clk 0:02:56.2]} 14. Rad1
{[%clk 0:02:59.5]} 14... Qe7 {[%clk 0:02:56.6]} 15. Rfe1 {[%clk 0:02:59.6]}
15... Qf8 {[%clk 0:02:50.8]} 16. f4 {[%clk 0:02:56.3]} 16... h5 {[%clk
0:02:49.8]} 17. Bf2 {[%clk 0:02:56.2]} 17... Bh6 {[%clk 0:02:47.9]} 18. Nf3
{[%clk 0:02:53.8]} 18... Be6 {[%clk 0:02:43.9]} 19. b3 {[%clk 0:02:48.2]} 19...
Rad8 {[%clk 0:02:43.4]} 20. Bd4 {[%clk 0:02:47.6]} 20... Bg7 {[%clk 0:02:42.3]}
21. Ng5 {[%clk 0:02:34]} 21... Bc8 {[%clk 0:02:42]} 22. Kh2 {[%clk 0:02:17.7]}
22... Nh7 {[%clk 0:02:39.5]} 23. Nf3 {[%clk 0:02:11.4]} 23... Bxd4 {[%clk
0:02:33.7]} 24. Nxd4 {[%clk 0:02:11.6]} 24... Qg7 {[%clk 0:02:32.3]} 25. Qd2
{[%clk 0:01:56]} 25... Nf8 {[%clk 0:02:31.8]} 26. f5 {[%clk 0:01:50.6]} 26...
Nfd7 {[%clk 0:02:12.7]} 27. Rf1 {[%clk 0:01:50.2]} 27... Kh7 {[%clk 0:02:08]}
28. Nf3 {[%clk 0:01:27.7]} 28... Ne5 {[%clk 0:02:04.7]} 29. f6 {[%clk
0:01:07.3]} 29... Qh6 {[%clk 0:01:59.5]} 30. Qc2 {[%clk 0:00:38.7]} 30... Nxf3+
{[%clk 0:01:46.8]} 31. Rxf3 {[%clk 0:00:39.6]} 31... h4 {[%clk 0:01:41]} 32. g4
{[%clk 0:00:39.1]} 32... Qg5 {[%clk 0:01:40.4]} 33. Kh1 {[%clk 0:00:35.7]} 33...
Re6 {[%clk 0:01:38.4]} 34. Rdf1 {[%clk 0:00:34.8]} 34... Rde8 {[%clk 0:01:38.3]}
35. Rf4 {[%clk 0:00:29.9]} 35... Nd7 {[%clk 0:01:28]} 36. Qf2 {[%clk 0:00:14.8]}
36... Nc5 {[%clk 0:01:27.4]} 37. Qc2 {[%clk 0:00:11.3]} 37... Re5 {[%clk
0:01:22.9]} 38. Ne2 {[%clk 0:00:09.8]} 38... b6 {[%clk 0:00:54.4]} 39. Nd4
{[%clk 0:00:09.9]} 39... Ne6 {[%clk 0:00:54.7]} 40. Nxe6 {[%clk 0:00:10.2]}
40... R8xe6 {[%clk 0:00:54.3]} 41. Qf2 {[%clk 0:00:10]} 41... c5 {[%clk
0:00:53.2]} 42. Kh2 {[%clk 0:00:07.6]} 42... Bb7 {[%clk 0:00:53.3]} 43. Re1
{[%clk 0:00:08.1]} 43... Re8 {[%clk 0:00:50.1]} 44. Re3 {[%clk 0:00:06.2]} 44...
d5 {[%clk 0:00:47.2]} 45. cxd5 {[%clk 0:00:05.8]} 45... Bxd5 {[%clk 0:00:47.8]}
46. Kh1 {[%clk 0:00:04.8]} 46... Bc6 {[%clk 0:00:45.1]} 47. Kh2 {[%clk
0:00:05.2]} 47... c4 {[%clk 0:00:42]} 48. bxc4 {[%clk 0:00:05.1]} 48... Rc5
{[%clk 0:00:42.6]} 49. Rb3 {[%clk 0:00:04.2]} 49... Kg8 {[%clk 0:00:41.8]} 50.
Rxb6 {[%clk 0:00:04.7]} 50... Qe5 {[%clk 0:00:42]} 51. Kh1 {[%clk 0:00:04]}
51... Rxc4 {[%clk 0:00:42.4]} 52. Rb1 {[%clk 0:00:04.4]} 52... Bxe4 {[%clk
0:00:33.2]} 53. Bxe4 {[%clk 0:00:03.1]} 53... Rxe4 {[%clk 0:00:34.1]} 54. Rf1
{[%clk 0:00:03.6]} 54... Qd5 {[%clk 0:00:25.9]} 55. Rxe4 {[%clk 0:00:03.6]}
55... Qxe4+ {[%clk 0:00:24.8]} 56. Qf3 {[%clk 0:00:02.4]} 56... Qxa4 {[%clk
0:00:23]} 57. g5 {[%clk 0:00:02.1]} 57... Qe4 {[%clk 0:00:21.4]} 58. Qxe4 {[%clk
0:00:02.4]} 58... Rxe4 {[%clk 0:00:21.9]} 59. Rb1 {[%clk 0:00:02.3]} 59... Re5
{[%clk 0:00:20.3]} 60. Rb8+ {[%clk 0:00:02.7]} 60... Kh7 {[%clk 0:00:20.5]} 61.
Rf8 {[%clk 0:00:03.4]} 61... Rxg5 {[%clk 0:00:20.7]} 62. Rxf7+ {[%clk
0:00:04.1]} 62... Kh6 {[%clk 0:00:21.1]} 63. Ra7 {[%clk 0:00:03.9]} 63... Rf5
{[%clk 0:00:21.3]} 64. f7 {[%clk 0:00:04.4]} 64... Kg7 {[%clk 0:00:21.4]} 65.
Kg2 {[%clk 0:00:05]} 65... Kf8 {[%clk 0:00:20.9]} 66. Kg1 {[%clk 0:00:05]} 66...
g5 {[%clk 0:00:14.1]} 67. Kg2 {[%clk 0:00:05.5]} 67... Kg7 {[%clk 0:00:12.9]}
68. Kg1 {[%clk 0:00:05]} 68... Kf8 {[%clk 0:00:13]} 69. Kg2 {[%clk 0:00:05.4]}
69... Kg7 {[%clk 0:00:13.3]} 70. Kg1 {[%clk 0:00:05.9]} 70... Rxf7 {[%clk
0:00:11.9]} 71. Rxa5 {[%clk 0:00:05.9]} 71... Kg6 {[%clk 0:00:12.6]} 72. Kg2
{[%clk 0:00:06.5]} 72... Rf5 {[%clk 0:00:12.8]} 73. Ra8 {[%clk 0:00:06.5]} 73...
Rf6 {[%clk 0:00:13.3]} 74. Rg8+ {[%clk 0:00:06.4]} 74... Kf5 {[%clk 0:00:13.7]}
75. Ra8 {[%clk 0:00:06.9]} 75... Kg6 {[%clk 0:00:13]} 1/2-1/2